bitfinex/quotes_ETHUSD_20230117
["timestamp","ask_amount","ask_price","bid_price","bid_amount"]
[1673920261740,0.12011262,1557.4,1557.3,44.38841405]
[1673920262115,0.12011262,1557.4,1557.3,42.46651967]
[1673920262270,0.12011262,1557.4,1557.3,38.24038369]
[1673920262806,0.12011262,1557.4,1557.3,42.46651967]
[1673920263014,0.12011262,1557.4,1557.3,37.59404451]
[1673920263232,0.12011262,1557.4,1557.3,38.24038369]
[1673920263440,0.12011262,1557.4,1557.3,43.60573866]
[1673920264491,0.12011262,1557.4,1557.3,39.37960268]
[1673920265455,0.12011262,1557.4,1557.3,40.33951901]
[1673920266591,0.11728584,1557.5,1557.3,44.56565499]
[1673920266857,0.11728584,1557.5,1557.4,13.94199816]
[1673920267004,0.11728584,1557.5,1557.4,29.78690496]
[1673920267381,0.11728584,1557.5,1557.4,34.01304094]
[1673920267545,5.84e-06,1557.5,1557.4,36.5812745]
[1673920267754,0.12156449,1557.7,1557.5,1.002]
[1673920267971,0.12156449,1557.7,1557.6,37.025104]
[1673920268328,0.12501995,1558.0,1557.7,1.121]
[1673920268546,0.12501995,1558.0,1557.9,1.0]
[1673920268709,0.12501995,1558.0,1557.9,22.26609112]
[1673920269070,0.12501995,1558.0,1557.9,20.78709792]
[1673920269210,0.12501995,1558.0,1557.9,12.12984445]
[1673920269419,0.12501995,1558.0,1557.9,15.8407868]
[1673920270067,0.40494163,1558.0,1557.9,15.8407868]
[1673920271574,0.35494163,1558.0,1557.9,15.8407868]
[1673920274507,0.126864,1558.2,1557.9,23.82988603]
[1673920274695,0.126864,1558.2,1558.0,9.98161267]
[1673920274885,0.126864,1558.2,1558.0,22.82157947]
[1673920275454,0.126864,1558.2,1558.0,21.33957947]
[1673920276376,0.126864,1558.2,1558.0,22.81057947]
[1673920276539,0.126864,1558.2,1558.0,23.45691865]
[1673920277140,0.126864,1558.2,1558.0,21.98591865]
[1673920277331,0.126864,1558.2,1558.0,21.33957947]
[1673920278588,0.126864,1558.2,1558.0,15.8399668]
[1673920278717,0.608464,1558.2,1558.0,15.8399668]
[1673920281437,0.608464,1558.2,1558.0,18.95659087]
[1673920282373,0.611464,1558.2,1558.0,12.8399668]
[1673920282588,0.60316449,1558.1,1558.0,0.0030068]
[1673920282833,0.60316449,1558.1,1557.9,6.4218968]
[1673920283008,0.4817,1558.0,1557.9,6.4218968]
[1673920283480,0.4817,1558.0,1557.9,0.0030068]
[1673920283703,0.4817,1558.0,1557.8,6.4220068]
[1673920283855,0.4817,1558.0,1557.8,0.0030068]
[1673920284221,0.4817,1558.0,1557.7,1.52307351]
[1673920284222,3.18,1557.9,1557.7,1.52307351]
[1673920284431,3.2817,1557.8,1557.7,1.52307351]
[1673920287798,3.2317,1557.8,1557.7,1.52307351]
[1673920290174,3.2317,1557.8,1557.5,0.0590068]
[1673920290377,2.2317,1557.8,1557.4,6.4236968]
[1673920296350,3.2317,1557.8,1557.4,6.4236968]
[1673920296560,0.32317,1557.7,1557.4,6.4236968]
[1673920296750,1.482,1557.8,1557.4,6.1736968]
[1673920297097,1.482,1557.8,1557.4,12.5946468]
[1673920297236,1.432,1557.8,1557.4,12.5946468]
[1673920297447,1.435,1557.8,1557.4,12.5946468]
[1673920297664,1.432,1557.8,1557.4,12.5946468]
[1673920297874,1.9137,1557.8,1557.4,15.37202348]
[1673920298420,1.432,1557.8,1557.4,15.37202348]
[1673920300306,1.432,1557.8,1557.4,15.12202348]
[1673920300769,1.432,1557.8,1557.4,0.0030068]
[1673920300921,1.432,1557.8,1557.4,3.0]
[1673920301125,1.432,1557.8,1557.4,15.84165]
[1673920301335,1.432,1557.8,1557.4,15.8446568]
[1673920303334,1.432,1557.8,1557.4,15.5946568]
[1673920303541,1.432,1557.8,1557.4,18.67241762]
[1673920304612,1.432,1557.8,1557.4,9.1737068]
[1673920305068,1.0,1557.7,1557.4,2.7530068]
[1673920305228,1.0,1557.7,1557.4,2.75]
[1673920305643,20.2637,1557.8,1557.4,15.59178]
[1673920305857,20.2637,1557.8,1557.4,15.5947868]
[1673920306345,22.39007,1557.8,1557.4,15.5947868]
[1673920306490,22.39007,1557.8,1557.4,2.7530068]
[1673920306802,22.39007,1557.8,1557.4,15.59178]
[1673920307013,22.39007,1557.8,1557.4,15.5947868]
[1673920307438,22.39007,1557.8,1557.4,9.1738368]
[1673920307650,2.720807,1557.7,1557.4,9.1738368]
[1673920307854,3.720807,1557.7,1557.4,9.1738368]
[1673920308123,3.239007,1557.7,1557.4,9.1738368]
[1673920308488,4.721007,1557.7,1557.4,9.1738368]
[1673920308852,4.706007,1557.7,1557.4,9.1738368]
[1673920309364,3.706007,1557.7,1557.4,9.1738368]
[1673920312064,4.706007,1557.7,1557.4,9.1738368]
[1673920312687,4.709007,1557.7,1557.4,9.1738368]
[1673920312900,4.706007,1557.7,1557.4,9.1738368]
[1673920313213,3.706007,1557.7,1557.4,9.1738368]
[1673920313422,0.3706007,1557.6,1557.4,2.7530068]
[1673920313667,1.3706007,1557.6,1557.3,8.7611068]
[1673920313887,1.3706007,1557.6,1557.3,8.7051068]
[1673920314205,0.3706007,1557.6,1557.3,8.7051068]
[1673920314804,1.8526007,1557.6,1557.3,8.7051068]
[1673920315018,1.8526007,1557.6,1557.3,0.0030068]
[1673920315019,1.0,1557.4,1557.3,0.0030068]
[1673920315229,6.42437,1557.3,1557.0,0.01]
[1673920315438,10.25049407,1557.2,1556.6,8.1659613]
[1673920315625,3.11662407,1557.1,1556.6,8.1099613]
[1673920315837,1.482,1556.9,1556.6,8.1099613]
[1673920316046,1.482,1556.9,1556.6,0.0859613]
[1673920316310,1.482,1556.9,1556.6,0.0759613]
[1673920316471,1.482,1556.8,1556.6,0.0759613]
[1673920318674,4.59862407,1556.8,1556.6,0.0759613]
[1673920319002,1.93986241,1556.7,1556.6,0.0759613]
[1673920319323,1.48,1556.7,1556.6,0.0759613]
[1673920322710,2.962,1556.7,1556.6,0.0759613]
[1673920323578,2.86254127,1556.7,1556.6,0.0759613]
[1673920324608,9.28638127,1556.7,1556.6,0.0759613]
[1673920324957,20.15084534,1556.7,1556.6,0.0759613]
[1673920325095,23.43860287,1556.7,1556.6,0.0759613]
[1673920326203,16.01476287,1556.7,1556.6,0.0759613]
[1673920326375,3.43864127,1556.7,1556.6,0.0759613]
[1673920326580,3.34464127,1556.7,1556.6,0.0759613]
[1673920326812,2.86254127,1556.7,1556.6,0.0759613]
[1673920328620,1.476,1556.7,1556.6,0.0759613]
[1673920329617,9.48173,1556.8,1556.6,0.0759613]
[1673920329827,0.948173,1556.7,1556.6,0.0759613]
[1673920330154,4.06479707,1556.7,1556.6,0.0759613]
[1673920330355,19.10657707,1556.7,1556.6,0.0759613]
[1673920330722,19.10657707,1556.7,1556.5,0.08292728]
[1673920330723,22.15057707,1556.7,1556.5,0.00515082]
[1673920330939,10.00778178,1556.6,1556.5,0.00515082]
[1673920331089,22.95028178,1556.6,1556.5,0.00515082]
[1673920331506,33.37698178,1556.6,1556.5,0.00515082]
[1673920332555,31.89498178,1556.6,1556.5,0.00515082]
[1673920334361,38.66598178,1556.6,1556.5,0.00515082]
[1673920334762,30.89498178,1556.6,1556.5,0.00515082]
[1673920337451,42.14798178,1556.6,1556.5,0.00515082]
[1673920337662,42.14798178,1556.6,1556.5,0.00015082]
[1673920338236,1.0,1556.5,1556.3,0.08721904]
[1673920338441,26.16806407,1556.4,1556.3,0.08721904]
[1673920338711,29.26206407,1556.4,1556.3,0.08721904]
[1673920339235,37.22726407,1556.4,1556.3,0.08721904]
[1673920340561,37.22726407,1556.4,1556.3,0.00021904]
[1673920341384,43.99826407,1556.4,1556.3,0.00021904]
[1673920342754,37.22726407,1556.4,1556.3,0.00021904]
[1673920343209,43.99826407,1556.4,1556.3,0.00021904]
[1673920344652,37.22726407,1556.4,1556.3,0.00021904]
[1673920348352,34.22726407,1556.4,1556.3,0.00021904]
[1673920351008,1.0,1556.3,1556.2,0.08254581]
[1673920351317,33.13263048,1556.3,1556.2,0.08254581]
[1673920351474,33.22663048,1556.3,1556.2,0.08254581]
[1673920352008,43.65133048,1556.3,1556.2,0.08254581]
[1673920357268,36.88033048,1556.3,1556.2,0.08254581]
[1673920357472,35.65033048,1556.3,1556.2,0.08254581]
[1673920357794,32.16813048,1556.3,1556.2,0.08254581]
[1673920358997,32.39813048,1556.3,1556.2,0.08254581]
[1673920359786,30.91613048,1556.3,1556.2,0.08254581]
[1673920362151,30.91613048,1556.3,1556.2,1.02054581]
[1673920362367,0.094,1556.3,1556.2,1.02054581]
[1673920362512,6.51908,1556.4,1556.2,1.02054581]
[1673920362722,16.06106407,1556.4,1556.2,1.02054581]
[1673920362999,18.30966248,1556.4,1556.2,0.08254581]
[1673920363838,0.23,1556.3,1556.2,0.08254581]
[1673920363995,1.23,1556.3,1556.2,0.08254581]
[1673920364195,0.23,1556.3,1556.2,0.08254581]
[1673920365080,3.21062407,1556.4,1556.2,1.02054581]
[1673920365291,3.11662407,1556.4,1556.2,1.02054581]
[1673920366330,1.23,1556.3,1556.2,0.08254581]
[1673920366513,17.19760407,1556.3,1556.2,0.08254581]
[1673920366848,17.29160407,1556.3,1556.2,0.08254581]
[1673920367298,1.0,1556.2,1556.1,0.08434991]
[1673920367471,17.19842407,1556.2,1556.1,0.08434991]
[1673920367683,20.02399991,1556.2,1556.1,0.08434991]
[1673920368280,20.97242278,1556.2,1556.1,0.08434991]
[1673920368483,21.80584475,1556.2,1556.1,0.08434991]
[1673920368989,23.22526618,1556.2,1556.1,0.08434991]
[1673920369315,46.31652797,1556.2,1556.1,0.00034991]
[1673920369480,47.53020708,1556.2,1556.1,0.00034991]
[1673920369925,49.9049873,1556.2,1556.1,0.00034991]
[1673920370464,49.90210246,1556.2,1556.1,0.00034991]
[1673920370714,49.90209148,1556.2,1556.1,0.00034991]
[1673920371374,47.52731126,1556.2,1556.1,0.00034991]
[1673920371629,40.75631126,1556.2,1556.1,0.00034991]
[1673920372961,42.17667281,1556.2,1556.1,0.00034991]
[1673920373305,42.17653166,1556.2,1556.1,0.00034991]
[1673920373688,32.39942139,1556.2,1556.1,0.00034991]
[1673920373900,33.34619753,1556.2,1556.1,0.00034991]
[1673920374940,31.91722139,1556.2,1556.1,0.00034991]
[1673920375889,32.86443091,1556.2,1556.1,0.00034991]
[1673920376905,31.91722139,1556.2,1556.1,0.00034991]
[1673920377641,33.81194122,1556.2,1556.1,0.00034991]
[1673920377788,39.69452904,1556.2,1556.1,0.00034991]
[1673920378002,39.69566699,1556.2,1556.1,0.00034991]
[1673920378559,38.27430864,1556.2,1556.1,0.00034991]
[1673920378889,45.04530864,1556.2,1556.1,0.00034991]
[1673920379429,46.46652117,1556.2,1556.1,0.00034991]
[1673920379601,46.46652046,1556.2,1556.1,0.00034991]
[1673920380155,32.40041281,1556.2,1556.1,0.00034991]
[1673920381614,4.91103008,1556.0,1555.9,0.08882531]
[1673920381824,8.25765415,1556.0,1555.9,0.08882531]
[1673920382050,8.35165415,1556.0,1555.9,0.08882531]
[1673920382925,14.77838415,1556.0,1555.9,0.08882531]
[1673920383213,17.54155056,1556.0,1555.9,0.08882531]
[1673920386956,8.35165415,1556.0,1555.9,0.08882531]
[1673920387211,5.23503008,1556.0,1555.9,0.08882531]
[1673920387590,8.12165415,1556.0,1555.9,0.08882531]
[1673920387945,21.20511415,1556.0,1555.9,0.08882531]
[1673920389894,22.98685263,1556.0,1555.9,0.08882531]
[1673920390155,5.00503008,1556.0,1555.9,1.15945335]
[1673920390323,0.94752954,1556.3,1555.9,16.13307253]
[1673920390533,1.01352954,1556.4,1555.9,19.90299203]
[1673920390739,0.94752954,1556.4,1555.9,18.95899203]
[1673920390995,0.94752954,1556.4,1556.0,1.8958992]
[1673920391149,1.74344677,1556.4,1556.2,1.47]
[1673920391592,1.42121182,1556.5,1556.2,1.47]
[1673920391593,0.94752954,1556.5,1556.2,1.47]
[1673920392219,1.74338832,1556.5,1556.2,1.47]
[1673920393411,0.94752954,1556.5,1556.2,1.47]
[1673920393727,1.74353508,1556.5,1556.2,2.908816]
[1673920394152,1.74353508,1556.5,1556.1,7.97408]
[1673920394153,0.94752954,1556.4,1556.1,7.97408]
[1673920394307,1.94752954,1556.4,1556.1,7.97408]
[1673920394512,1.94752954,1556.4,1556.1,1.548]
[1673920394777,1.94752954,1556.4,1556.1,1.482]
[1673920396340,0.94752954,1556.4,1556.1,1.482]
[1673920396507,1.74373617,1556.4,1556.1,3.46321392]
[1673920396962,1.01352954,1556.5,1556.1,3.46321392]
[1673920397219,0.94752954,1556.5,1556.1,3.46321392]
[1673920397392,1.74380973,1556.5,1556.1,3.46321392]
[1673920398082,4.8604338,1556.5,1556.1,3.46321392]
[1673920398397,10.48882361,1556.5,1556.1,3.46321392]
[1673920398610,10.55482361,1556.5,1556.1,3.46321392]
[1673920399186,10.55482361,1556.5,1556.2,0.34632139]
[1673920401196,10.55482361,1556.5,1556.1,3.46321392]
[1673920401830,4.13015361,1556.5,1556.1,3.46321392]
[1673920402054,4.06415361,1556.5,1556.1,3.46321392]
[1673920403169,9.54129407,1556.5,1556.1,3.46321392]
[1673920403386,10.55482361,1556.5,1556.1,1.482]
[1673920403924,9.60729407,1556.5,1556.1,1.482]
[1673920404293,10.55482361,1556.5,1556.1,1.482]
[1673920405089,11.55482361,1556.5,1556.1,1.482]
[1673920406178,9.60729407,1556.5,1556.1,4.482]
[1673920406556,10.55482361,1556.5,1556.1,8.04850992]
[1673920406772,11.55482361,1556.5,1556.1,4.548]
[1673920406981,11.55482361,1556.5,1556.1,4.482]
[1673920407186,10.55482361,1556.5,1556.1,4.482]
[1673920407886,11.55482361,1556.5,1556.1,4.482]
[1673920408932,10.55482361,1556.5,1556.1,4.482]
[1673920409246,3.18262407,1556.5,1556.2,1.9302]
[1673920409416,3.11662407,1556.5,1556.2,1.9302]
[1673920410447,9.10437651,1556.6,1556.2,1.9302]
[1673920410828,9.10437651,1556.6,1556.3,1.477]
[1673920410829,0.5481,1556.6,1556.3,1.477]
[1673920410976,9.18522954,1556.7,1556.3,1.477]
[1673920411184,12.30185361,1556.7,1556.3,2.961291]
[1673920412073,12.30185361,1556.7,1556.3,9.386641]
[1673920412249,12.30185361,1556.7,1556.3,9.452641]
[1673920413395,0.066,1556.7,1556.4,1.473]
[1673920413762,1.05234535,1556.8,1556.6,1.47]
[1673920413916,1.05234535,1556.8,1556.7,1.629]
[1673920413917,0.10481581,1556.8,1556.7,1.629]
[1673920415597,0.10481581,1556.8,1556.7,1.482]
[1673920416031,0.10481581,1556.8,1556.6,1.539]
[1673920416032,1.05234535,1556.8,1556.6,1.539]
[1673920416240,1.05234535,1556.8,1556.6,1.473]
[1673920416488,1.05234535,1556.8,1556.5,0.066]
[1673920416648,2.05234535,1556.8,1556.4,7.96399]
[1673920416859,2.05234535,1556.8,1556.4,11.6815911]
[1673920417584,5.16896942,1556.8,1556.4,5.2566011]
[1673920417800,4.86001602,1556.7,1556.4,0.066]
[1673920418024,1.0,1556.6,1556.3,10.0443]
[1673920418165,4.36015361,1556.7,1556.3,10.0443]
[1673920418376,4.29415361,1556.7,1556.3,16.46972]
[1673920418902,0.94752954,1556.7,1556.3,16.46972]
[1673920419149,1.74370062,1556.7,1556.3,22.89521]
[1673920419360,0.94752954,1556.7,1556.3,22.89521]
[1673920419552,1.74376237,1556.7,1556.3,22.89521]
[1673920419766,1.74376237,1556.7,1556.3,25.827293]
[1673920420212,10.53675717,1556.8,1556.4,1.481]
[1673920420434,10.53675717,1556.8,1556.5,6.42462]
[1673920420647,9.11554535,1556.8,1556.5,6.49062]
[1673920420955,9.11554535,1556.8,1556.5,7.97262]
[1673920421167,0.17081581,1556.8,1556.6,0.797262]
[1673920421386,0.10481581,1556.8,1556.7,1.482]
[1673920428388,0.10481581,1556.8,1556.6,10.287462]
[1673920428635,0.10481581,1556.8,1556.6,9.4902]
[1673920429106,1.05234535,1556.8,1556.6,9.4902]
[1673920429754,3.27108383,1556.8,1556.6,0.066]
[1673920429984,3.09673754,1556.8,1556.5,6.49038]
[1673920430835,1.67552572,1556.8,1556.5,6.49038]
[1673920431066,1.05234535,1556.8,1556.5,6.49038]
[1673920431453,2.47355717,1556.8,1556.5,6.49038]
[1673920433945,1.74484054,1556.7,1556.5,6.49038]
[1673920434193,0.94752954,1556.7,1556.5,6.49038]
[1673920434581,2.47355717,1556.8,1556.5,6.49038]
[1673920436208,1.05234535,1556.8,1556.5,6.49038]
[1673920436531,3.27082711,1556.8,1556.5,6.49038]
[1673920436745,2.47355717,1556.8,1556.5,6.49038]
[1673920437382,0.94752954,1556.7,1556.5,6.49038]
[1673920437547,2.47355717,1556.8,1556.5,6.49038]
[1673920439374,1.74484259,1556.7,1556.5,6.49038]
[1673920440483,2.53955717,1556.8,1556.5,6.49038]
[1673920440733,1.7448928,1556.7,1556.5,6.49038]
[1673920440954,1.11834535,1556.8,1556.5,6.49038]
[1673920441266,1.05234535,1556.8,1556.5,6.49038]
[1673920442620,1.84970317,1556.8,1556.5,6.49038]
[1673920442833,1.05234535,1556.8,1556.5,6.49038]
[1673920443102,3.27110518,1556.8,1556.5,7.781916]
[1673920443318,2.47355717,1556.8,1556.5,7.781916]
[1673920445396,1.74557906,1556.7,1556.5,7.781916]
[1673920445766,2.53955717,1556.8,1556.5,7.781916]
[1673920446037,2.47355717,1556.8,1556.5,7.781916]
[1673920446196,0.94752954,1556.7,1556.5,7.781916]
[1673920446650,1.74527236,1556.7,1556.5,7.781916]
[1673920447289,1.74527236,1556.7,1556.5,6.49038]
[1673920448248,1.74527236,1556.7,1556.5,0.066]
[1673920448561,1.74527236,1556.6,1556.4,0.066]
[1673920448715,1.74727236,1556.6,1556.4,3.0]
[1673920448926,1.74527236,1556.6,1556.4,3.0]
[1673920449395,0.94752954,1556.6,1556.4,3.0]
[1673920449550,3.16679192,1556.6,1556.4,3.0]
[1673920450202,0.94752954,1556.5,1556.4,3.0]
[1673920450421,2.98149253,1556.6,1556.4,3.0]
[1673920450735,1.56028071,1556.6,1556.4,3.0]
[1673920451347,1.56028071,1556.6,1556.3,8.5743]
[1673920451558,3.77960157,1556.6,1556.3,8.5743]
[1673920451766,2.98149253,1556.6,1556.3,8.5743]
[1673920451997,0.94752954,1556.5,1556.3,8.5743]
[1673920452208,1.74554306,1556.5,1556.3,8.570745]
[1673920452466,1.74554306,1556.5,1556.3,0.066]
[1673920452663,1.74554306,1556.5,1556.3,3.0]
[1673920454521,2.13009366,1556.5,1556.3,3.0]
[1673920454800,1.33208014,1556.5,1556.3,3.0]
[1673920456445,0.94752954,1556.5,1556.3,3.0]
[1673920456876,1.74526388,1556.5,1556.3,3.0]
[1673920459128,0.94752954,1556.5,1556.2,0.066]
[1673920459344,0.94752954,1556.4,1556.1,17.6624]
[1673920459549,0.09475295,1556.3,1556.1,8.0993]
[1673920460190,0.09475295,1556.3,1556.1,0.066]
[1673920460427,0.09475295,1556.3,1556.1,3.0]
[1673920461490,0.4822,1556.4,1556.1,9.42632]
[1673920461805,9.70902954,1556.5,1556.1,15.91864]
[1673920462842,9.22692954,1556.5,1556.1,15.91864]
[1673920464023,9.22692954,1556.5,1556.1,9.49232]
[1673920465009,10.41176857,1556.5,1556.1,9.49232]
[1673920465336,15.67364153,1556.5,1556.1,9.49232]
[1673920465552,14.4888025,1556.5,1556.1,9.49232]
[1673920465761,13.06759068,1556.5,1556.1,9.49232]
[1673920467021,13.54969068,1556.5,1556.1,9.49232]
[1673920467896,13.54969068,1556.5,1556.1,10.49232]
[1673920468104,13.54969068,1556.5,1556.1,9.49232]
[1673920468419,14.9709025,1556.5,1556.1,9.49232]
[1673920468634,1.49709025,1556.4,1556.1,9.49232]
[1673920470374,5.56124386,1556.4,1556.1,3.066]
[1673920470634,18.47740386,1556.4,1556.1,3.0]
[1673920470842,19.66224289,1556.4,1556.1,3.0]
[1673920470993,1.96622429,1556.3,1556.1,3.0]
[1673920473137,12.50844836,1556.3,1556.1,3.0]
[1673920473337,12.50844836,1556.3,1556.0,0.066]
[1673920473338,13.5219779,1556.3,1556.0,0.066]
[1673920473546,0.4822,1556.2,1555.9,3.08882531]
[1673920473742,1.4822,1556.2,1555.9,3.08882531]
[1673920473979,3.14297779,1556.2,1555.9,3.08882531]
[1673920475836,3.11662407,1556.1,1555.9,0.08882531]
[1673920476052,10.54335407,1556.0,1555.9,0.0858975]
[1673920476264,10.60935407,1556.0,1555.9,0.0858975]
[1673920476696,17.03608407,1556.0,1555.9,0.0858975]
[1673920476909,17.26608407,1556.0,1555.9,0.0858975]
[1673920477123,19.92651043,1556.0,1555.9,0.0858975]
[1673920480902,18.92651043,1556.0,1555.9,0.0858975]
[1673920481120,12.49978043,1556.0,1555.9,0.0858975]
[1673920481845,6.07305043,1556.0,1555.9,0.0858975]
[1673920482538,0.066,1556.0,1555.9,1.0238975]
[1673920482686,0.066,1556.1,1555.9,1.0238975]
[1673920482897,14.64068801,1556.3,1555.9,1.0238975]
[1673920483114,1.0,1556.1,1555.9,0.0858975]
[1673920483334,12.23994548,1556.1,1555.9,0.0858975]
[1673920483544,12.30594548,1556.1,1555.9,0.0858975]
[1673920483771,11.30594548,1556.1,1555.9,0.0858975]
[1673920484899,12.30594548,1556.1,1555.9,0.0858975]
[1673920485776,4.11662407,1556.0,1555.9,0.0858975]
[1673920485940,6.56928619,1556.0,1555.9,0.0858975]
[1673920486156,19.71874619,1556.0,1555.9,0.0858975]
[1673920486516,21.20074619,1556.0,1555.9,0.0858975]
[1673920489119,21.20074619,1556.0,1555.3,0.10308809]
[1673920489120,27.39802122,1556.0,1555.3,0.10308809]
[1673920489335,27.39802122,1556.0,1555.1,30.2480108]
[1673920489336,3.11662407,1555.6,1555.1,30.2480108]
[1673920489542,1.482,1555.2,1555.1,0.1020108]
[1673920489857,5.08112407,1555.2,1555.1,0.1020108]
[1673920490095,5.08112407,1555.2,1555.1,3.29993035]
[1673920490096,18.00720407,1555.2,1555.1,3.29993035]
[1673920490415,18.00720407,1555.2,1555.0,0.10334469]
[1673920490416,21.42554007,1555.2,1555.0,0.10334469]
[1673920490646,8.91077808,1555.1,1555.0,0.10334469]
[1673920490936,9.86816813,1555.1,1555.0,0.10334469]
[1673920491310,16.29861813,1555.1,1555.0,0.10334469]
[1673920491734,18.52797808,1555.1,1555.0,0.10334469]
[1673920491980,16.05597808,1555.1,1555.0,0.10334469]
[1673920492145,13.91342407,1555.1,1555.0,0.10334469]
[1673920494916,10.5668,1555.1,1555.0,0.10334469]
[1673920495808,0.066,1555.1,1555.0,1.04134469]
[1673920496024,12.8401,1555.4,1555.0,1.04134469]
[1673920496331,21.91893407,1555.4,1555.0,1.04134469]
[1673920496553,11.09433407,1555.4,1555.0,1.04134469]
[1673920496911,1.0,1555.3,1555.0,1.04134469]
[1673920497118,1.0,1555.3,1555.0,1.14547916]
[1673920497860,10.09433407,1555.4,1555.0,1.14547916]
[1673920498228,0.5485,1555.4,1555.0,9.05823916]
[1673920498553,0.4824,1555.5,1555.0,15.48909916]
[1673920498697,0.4824,1555.5,1555.1,1.54890992]
[1673920498698,3.59902407,1555.5,1555.1,1.54890992]
[1673920499140,11.373,1555.6,1555.1,1.54890992]
[1673920499490,11.373,1555.6,1555.2,1.482]
[1673920499696,0.5484,1555.6,1555.2,10.91182]
[1673920499906,0.4824,1555.6,1555.3,1.091182]
[1673920500979,6.49422,1555.7,1555.3,1.091182]
[1673920501193,9.61084407,1555.7,1555.3,1.091182]
[1673920504105,9.61084407,1555.7,1555.3,1.041182]
[1673920504736,0.066,1555.7,1555.3,8.952722]
[1673920504964,0.066,1555.8,1555.4,3.3652722]
[1673920505178,6.42706,1556.0,1555.5,6.42871]
[1673920505179,17.55986,1556.0,1555.5,6.42871]
[1673920505367,20.67648407,1556.0,1555.5,6.42871]
[1673920506080,6.97536,1556.0,1555.5,6.42871]
[1673920506351,6.97536,1556.0,1555.8,1.471]
[1673920506352,0.066,1556.0,1555.8,1.471]
[1673920506688,6.90798,1556.3,1555.8,7.89843]
[1673920506689,6.97398,1556.3,1555.8,7.89843]
[1673920506880,11.09060407,1556.3,1555.8,7.89843]
[1673920507031,11.09060407,1556.3,1555.8,9.33765]
[1673920507505,10.09060407,1556.3,1555.8,9.33765]
[1673920507659,0.5482,1556.3,1555.8,9.33765]
[1673920507868,0.4822,1556.3,1555.9,1.482]
[1673920508115,11.1327,1556.4,1555.9,4.482]
[1673920508343,11.1327,1556.4,1556.0,6.87472]
[1673920509168,0.066,1556.4,1556.1,3.0]
[1673920509383,6.49078,1556.5,1556.1,3.0]
[1673920509599,9.60740407,1556.5,1556.1,3.0]
[1673920509810,10.60740407,1556.5,1556.1,3.0]
[1673920510032,11.55380368,1556.5,1556.1,3.0]
[1673920510340,10.55380368,1556.5,1556.1,3.0]
[1673920510556,13.74896937,1556.5,1556.1,3.0]
[1673920511727,7.43717961,1556.5,1556.1,3.0]
[1673920512721,0.066,1556.5,1556.1,9.42623]
[1673920512931,1.01239961,1556.6,1556.3,1.482]
[1673920513147,1.01239961,1556.7,1556.4,0.1482]
[1673920513373,2.47081483,1556.8,1556.4,0.1482]
[1673920513773,1.05121542,1556.8,1556.4,0.1482]
[1673920513981,1.05121542,1556.8,1556.4,6.57319]
[1673920514196,0.10481581,1556.8,1556.6,1.477]
[1673920514389,0.10481581,1556.8,1556.6,1.6247]
[1673920515260,0.10481581,1556.8,1556.5,3.066]
[1673920515261,3.22143988,1556.8,1556.5,3.066]
[1673920515472,1.74775745,1556.5,1556.4,0.066]
[1673920515685,1.74775745,1556.5,1556.3,6.42516]
[1673920515891,1.74775745,1556.5,1556.4,12.85016]
[1673920516085,1.74775745,1556.5,1556.4,15.85016]
[1673920516293,1.74775745,1556.5,1556.4,18.232492]
[1673920516650,1.74775745,1556.5,1556.4,5.382332]
[1673920516867,1.74775745,1556.5,1556.3,0.066]
[1673920517035,1.74775745,1556.5,1556.3,3.0]
[1673920518057,1.74775745,1556.5,1556.1,0.066]
[1673920518225,1.74775745,1556.5,1556.0,7.90847]
[1673920518388,4.28428419,1556.5,1556.0,7.90847]
[1673920519033,10.70895419,1556.5,1556.0,7.90847]
[1673920519279,4.35028419,1556.5,1556.0,14.3352]
[1673920519493,1.74775745,1556.5,1556.0,12.8532]
[1673920519801,1.74775745,1556.5,1556.1,15.85214]
[1673920520017,1.74775745,1556.5,1556.1,17.32914]
[1673920526295,1.74775745,1556.5,1556.3,6.42549]
[1673920526471,1.74775745,1556.5,1556.3,14.33298]
[1673920526687,1.74775745,1556.5,1556.4,9.42508]
[1673920526892,1.74775745,1556.5,1556.4,17.33216]
[1673920529728,1.74775745,1556.5,1556.4,3.0]
[1673920529943,1.74775745,1556.5,1556.3,3.066]
[1673920530184,1.74775745,1556.5,1556.3,3.0]
[1673920530407,1.92253319,1556.5,1556.3,3.0]
[1673920530628,1.92253319,1556.5,1556.2,3.066]
[1673920530816,1.92253319,1556.5,1556.2,3.0]
[1673920534334,1.74775745,1556.5,1556.2,3.0]
[1673920537205,1.74775745,1556.5,1556.2,2.99797184]
[1673920538925,1.74775745,1556.5,1556.2,9.42387184]
[1673920539135,1.74775745,1556.5,1556.2,17.32277184]
[1673920539513,1.74775745,1556.5,1556.3,1.0]
[1673920539784,1.74775745,1556.5,1556.3,15.04016718]
[1673920539948,1.74775745,1556.5,1556.3,16.52216718]
[1673920541468,1.74775745,1556.5,1556.4,9.42508]
[1673920547619,3.65799846,1556.5,1556.4,9.42508]
[1673920554357,4.13119826,1556.5,1556.4,3.0]
[1673920554552,4.13119826,1556.5,1556.3,4.548]
[1673920554553,4.83483797,1556.5,1556.3,4.548]
[1673920554765,4.83483797,1556.5,1556.4,3.0]
[1673920554766,12.18850578,1556.5,1556.4,3.0]
[1673920554972,18.62151227,1556.5,1556.3,3.066]
[1673920555205,3.77524661,1556.4,1556.2,0.066]
[1673920555451,2.81088119,1556.4,1556.1,4.482]
[1673920556162,2.81088119,1556.4,1556.1,10.90828]
[1673920556524,2.81088119,1556.4,1556.0,0.066]
[1673920556525,0.94872996,1556.2,1556.0,0.066]
[1673920556681,1.482,1556.2,1555.8,9.949634]
[1673920557029,2.43072996,1556.2,1555.9,0.61381571]
[1673920557241,3.85381921,1556.2,1555.8,7.55089896]
[1673920557427,3.29077962,1556.2,1555.8,7.48489896]
[1673920557654,4.71386887,1556.2,1555.8,7.48489896]
[1673920558289,5.71386887,1556.2,1555.9,3.0]
[1673920558515,4.29786887,1556.2,1555.9,3.0]
[1673920558671,3.23186887,1556.2,1555.9,3.0]
[1673920559206,0.94872996,1556.2,1555.9,3.0]
[1673920559571,1.91214345,1556.2,1555.9,3.0]
[1673920560186,1.90905366,1556.2,1555.9,3.0]
[1673920560889,1.90905366,1556.2,1555.9,15.85422]
[1673920561108,3.27696739,1556.3,1555.9,15.85422]